Cogmind - Beta 12 @@@ ROGUE MODE // 2024.01.17 @ 10:04:51 Player: Dosh Result: Destroyed by G-67 Veteran with Plasma Rifle Performance ------------- Evolutions (6) 3000 Regions Visited (30) 6000 Robots Destroyed (380) 1900 Value Destroyed (12199) 12199 Prototype IDs (71) 1420 Alien Tech Used (0) 0 Bonus (4490) 4490 TOTAL SCORE: 29009 Bonus ------- High Alert Combat Kills 804 Follower Combat Kills 1817 Entered Garrisons 200 Aligned with FarCom 300 Met Data Miner 300 Destroyed Z-Imprinter 1000 Met Warlord at Base 500 MAIN.C Attacked Warlord 500 Warlord Defense Kills 422 Friendly Fire -1353 Cogmind --------- Core Integrity 0/1150 Matter 133/300 Energy 100/100 System Corruption 16% Temperature Cool (12) Movement Core (50) Location -4/Factory Parts ------- > --- POWER (2) -------- (None) > --- PROPULSION (6) --- (None) > --- UTILITY (9) ------ Advanced Hacking Suite Advanced System Shield > --- WEAPON (2) ------- (None) > --- INVENTORY (5) ---- Micro Fission Core Improved Diametric Drive Advanced Power Amplifier Makeshift ECM Suite RU-N14's Throwing Claymores v3 (10) Peak State ------------ > --- POWER ------------ Light Neutrino Core Micro Antimatter Reactor > --- PROPULSION ------- Biomechanical Wings Cooled Nuclear Pulse Thruster Impulse Thruster Q-thruster Impulse Thruster Array > --- UTILITY ---------- Advanced Power Amplifier Experimental Heat Sink Medium Storage Unit Core Analyzer Advanced Transmission Jammer Experimental Cloaking Device Hacking Suite Advanced Hacking Suite Advanced System Shield > --- WEAPON ----------- Hypervelocity Coil Gun Railgun > --- INVENTORY -------- Micro Fission Core Cesium-ion Thruster Improved Diametric Drive Experimental Energy Well Makeshift ECM Suite Hacking Suite Ghost Barrier Hellfire Missile Launcher RU-N14's Throwing Claymores v3 [Rating: 129] Favorites ----------- Power Heavy Ion Engine Engine Heavy Ion Engine Power Core Micro Fission Core Reactor Compact Particle Reactor Propulsion Light Treads Treads Light Treads Wheel Armored Huge Wheel Hover Unit Zionite Glidesys I Flight Unit Cooled Nuclear Pulse Thruster Utility Hacking Suite Device Sensor Drone Bay Storage Medium Storage Unit Processor Core Analyzer Hackware Hacking Suite Protection Hardened Light Armor Plating Weapon Enhanced Autogun Energy Gun Gamma Rifle Energy Cannon Cooled Plasma Cannon Ballistic Gun Enhanced Autogun Ballistic Cannon Improved Light Cannon Launcher Mini Grenade Launcher Special Weapon RU-N14's Throwing Claymores v3 Impact Weapon Heavy Flail Build | -11 -10 -10 -9 -9 -9 -8 -8 -8 -8 -7 -7 -7 -7 -7 -6 -6 -6 -6 -6 -6 -6 -5 -5 -5 -5 -5 -5 -5 -4 -4 ------- Run | Jun Mat Min Mat Min Exi Min Mat Gar Mat Fac Low Low Zio Dee Pro Fac Was Fac Low Low Dat Pro Fac Was Fac Upp Upp War Pro Fac Slots Evolved 12 | . . . 2 . . . 2 . . 2 . . . . . 2 . . . . . . 2 . . . . . . 2 Power 1 | . . . . . . . . . . . . . . . . . . . . . . . 1 . . . . . . . Propulsion 4 | . . . . . . . 1 . . 1 . . . . . 2 . . . . . . . . . . . . . . Utility 7 | . . . 2 . . . 1 . . 1 . . . . . . . . . . . . 1 . . . . . . 2 Weapon . | . . . . . . . . . . . . . . . . . . . . . . . . . . . . . . . Parts Attached 411 | 5 10 . 26 2 2 1 33 19 18 41 4 4 3 11 6 60 5 37 4 . 2 1 61 4 14 1 1 12 . 24 Power 36 | 1 . . 5 . . . 2 1 1 3 . . . . . 6 2 5 . . . . 7 . 1 . . . . 2 Engine 12 | 1 . . 4 . . . 2 . 1 1 . . . . . 3 . . . . . . . . . . . . . . Core 19 | . . . 1 . . . . 1 . 2 . . . . . 3 1 2 . . . . 7 . 1 . . . . 1 Reactor 5 | . . . . . . . . . . . . . . . . . 1 3 . . . . . . . . . . . 1 Propulsion 93 | 2 2 . 6 . . 1 11 3 5 9 . . . 2 . 18 . 8 1 . . 1 19 . 1 . . 1 . 3 Treads 33 | 2 2 . 6 . . 1 11 2 5 4 . . . . . . . . . . . . . . . . . . . . Leg . | . . . . . . . . . . . . . . . . . . . . . . . . . . . . . . . Wheel 8 | . . . . . . . . 1 . 2 . . . 1 . . . . . . . . 4 . . . . . . . Hover 1 | . . . . . . . . . . . . . . 1 . . . . . . . . . . . . . . . . Flight 51 | . . . . . . . . . . 3 . . . . . 18 . 8 1 . . 1 15 . 1 . . 1 . 3 Utility 137 | 1 4 . 5 1 2 . 7 7 6 14 3 3 1 9 3 14 3 15 . . . . 13 1 6 . 1 6 . 12 Device 67 | . . . . 1 . . 1 1 1 7 2 3 1 5 . 6 3 10 . . . . 10 . 2 . 1 5 . 8 Storage 12 | 1 2 . . . 1 . . 1 . . . . . 1 1 2 . 1 . . . . 1 . . . . 1 . . Processor 5 | . . . . . . . 1 . . . . . . . 1 . . 1 . . . . . 1 . . . . . 1 Hackware 17 | . . . 2 . . . . . 1 1 . . . . . 4 . 2 . . . . 2 . 2 . . . . 3 Protection 36 | . 2 . 3 . 1 . 5 5 4 6 1 . . 3 1 2 . 1 . . . . . . 2 . . . . . Artifact . | . . . . . . . . . . . . . . . . . . . . . . . . . . . . . . . Weapon 145 | 1 4 . 10 1 . . 13 8 6 15 1 1 2 . 3 22 . 9 3 . 2 . 22 3 6 1 . 5 . 7 Energy Gun 3 | . . . . . . . . . . . . . . . . 1 . . . . . . . 1 . . . . . 1 Energy Cannon 21 | . . . 1 . . . . . . 1 . . . . . 3 . 1 . . . . 7 . 4 1 . 3 . . Ballistic Gun 72 | 1 3 . 5 . . . 6 4 4 9 . . 1 . 1 13 . 6 2 . 2 . 10 . . . . . . 5 Ballistic Cannon 13 | . 1 . 2 . . . 3 . . 1 1 . 1 . . 3 . . . . . . . 1 . . . . . . Launcher 29 | . . . 2 1 . . 3 1 1 3 . 1 . . 2 2 . 2 1 . . . 5 1 2 . . 1 . 1 Special Weapon 1 | . . . . . . . . . . . . . . . . . . . . . . . . . . . . 1 . . Impact Weapon 6 | . . . . . . . 1 3 1 1 . . . . . . . . . . . . . . . . . . . . Slashing Weapon . | . . . . . . . . . . . . . . . . . . . . . . . . . . . . . . . Piercing Weapon . | . . . . . . . . . . . . . . . . . . . . . . . . . . . . . . . Special Melee Weapon . | . . . . . . . . . . . . . . . . . . . . . . . . . . . . . . . Unidentified Prototypes 33 | . . . 3 1 . . 1 . . 6 . . . 5 . 4 1 6 . . . . . . . . . 6 . . Corrupted Parts 1 | . . . . . . . . . . . . . . . . . . . . . . . . . 1 . . . . . System Corruption 5 | . . . . . . . . . . . . . . . . . . . . . . . . . 5 . . . . . Parts Lost 82 | . . . 5 . . . 9 2 1 12 . . . 1 1 8 . 6 1 . . 1 14 . 3 1 . 1 1 15 Power 8 | . . . 2 . . . . . . . . . . . . 1 . 1 . . . . 2 . . . . . . 2 Propulsion 35 | . . . 2 . . . 4 . . 7 . . . . . 3 . 1 1 . . 1 9 . 1 . . . . 6 Utility 30 | . . . 1 . . . 3 2 1 4 . . . 1 . 3 . 3 . . . . 2 . 1 1 . 1 1 6 Weapon 9 | . . . . . . . 2 . . 1 . . . . 1 1 . 1 . . . . 1 . 1 . . . . 1 Highest Loss Streak 12 | . . . 3 . . . 3 1 1 5 . . . 1 1 4 . 1 1 . . 1 4 . 2 1 . 1 1 12 To Critical Strikes . | . . . . . . . . . . . . . . . . . . . . . . . . . . . . . . . Average Slot Usage (%) 91 | . 98 100 98 100 100 100 93 96 99 91 84 84 83 77 76 92 98 97 96 93 80 93 85 91 87 74 75 77 75 79 Engine 3 | . 14 14 10 11 11 11 9 1 3 3 . . . . . 1 . . . . . . . . . . . . . . Core 4 | . . . . . . . . 7 5 3 7 7 7 7 7 4 5 1 6 6 6 6 9 11 11 11 11 11 11 4 Treads 11 | . 28 28 21 22 22 22 26 26 26 18 . . . . . . . . . . . . . . . . . . . . Wheel 2 | . . . . . . . . . . 2 15 15 15 14 15 1 . . . . . . 3 . . . . . . . Flight 12 | . . . . . . . . . . 3 . . . . . 35 40 39 37 33 33 33 25 29 29 29 29 29 29 24 Device 5 | . . . . 2 2 . 4 . . 3 15 15 15 8 7 2 6 8 13 13 13 13 10 17 11 8 10 14 17 15 Storage 7 | . 14 14 11 11 11 11 9 9 9 7 7 7 7 7 7 6 6 8 6 6 6 6 5 5 5 5 5 5 5 5 Processor 3 | . . . . . . . . 9 9 7 7 7 7 7 7 1 . . . . . . . 2 5 5 5 5 4 3 Hackware 15 | . . . 21 22 22 22 16 9 17 14 9 7 7 7 7 24 26 20 20 20 20 20 22 14 10 5 5 5 5 14 Protection 6 | . 12 14 11 8 8 11 9 14 9 8 4 7 7 6 6 . . . . . . . . . 4 5 5 1 . . Ballistic Gun 9 | . 26 14 9 . . . 9 16 17 14 7 7 7 7 6 8 6 9 11 13 . 13 3 . . . . . . 4 Ballistic Cannon 3 | . . 14 10 11 11 11 7 . . . 6 . 6 7 7 1 . . . . . . . . . . . . . . Launcher 1 | . . . . 10 11 11 . . . . . 6 . . . . . . . . . . . 4 2 . . . . . Naked Turns . | . . . . . . . . . . . . . . . . . . . . . . . . . . . . . . . Heaviest Build 138 | 12 56 36 40 47 58 58 76 122 124 124 136 133 136 138 132 130 37 37 35 29 29 29 55 43 43 40 36 43 34 44 Greatest Support 112 | 40 40 40 43 40 40 40 62 62 84 112 56 56 56 56 56 56 46 39 46 30 30 31 44 43 43 43 36 43 43 46 Greatest Overweight (x) 8 | . 1 . . 1 1 1 1 1 1 8 2 2 2 4 2 3 . 1 . . . . 5 . 1 1 . 1 . 2 Average Overweight (x) . | . . . . . . 1 . 1 1 1 1 2 2 2 2 . . . . . . . . . . . . . . . Largest Inventory Capacity 35 | 8 20 15 15 15 20 20 20 25 25 25 25 25 25 25 35 25 10 10 10 10 10 10 10 10 10 10 10 10 10 10 Average Capacity 17 | 7 12 15 15 15 18 20 20 23 25 25 25 25 25 25 25 12 10 10 10 10 10 10 10 10 10 10 10 10 10 9 Most Carried 25 | 3 14 14 15 15 18 19 20 25 25 25 25 25 25 25 25 25 10 10 9 10 10 10 10 10 10 10 10 10 10 10 Average Carried 16 | 1 8 14 14 14 17 18 19 23 24 23 25 25 24 24 24 11 10 9 8 9 10 9 8 9 9 9 10 9 10 8 Final Capacity 25 | 8 15 15 15 15 20 20 20 25 25 25 25 25 25 25 25 10 10 10 10 10 10 10 10 10 10 10 10 10 10 5 Final Carried 25 | 3 14 14 15 15 18 19 20 24 25 25 25 25 25 25 24 10 10 8 9 10 10 9 9 9 9 10 10 10 10 5 Class Distribution -------------------- 38% | Hacker-Mutant 26% | Hacker-Sprinter 22% | Mutant 5% | Machinist-Sprinter 4% | Scavenger-Mutant Dominant Class ---------------- Mutant | -10/Materials Mutant | -10/Mines Hacker-Mutant | -9/Materials Hacker-Mutant | -9/Mines Hacker-Mutant | -9/Exiles Hacker-Mutant | -8/Mines Hacker-Mutant | -8/Materials Scavenger-Mutant | -8/Garrison Hacker-Mutant | -8/Materials Hacker-Mutant | -7/Factory Mutant | -7/Lower Caves Mutant | -7/Lower Caves Mutant | -7/Zion Mutant | -7/Deep Caves Mutant | -6/Proximity Caves Hacker-Sprinter | -6/Factory Hacker-Sprinter | -6/Waste Hacker-Sprinter | -6/Factory Hacker-Sprinter | -6/Lower Caves Hacker-Sprinter | -6/Lower Caves Hacker-Sprinter | -6/Data Miner Hacker-Sprinter | -5/Proximity Caves Hacker-Sprinter | -5/Factory Machinist-Sprinter | -5/Waste Machinist-Sprinter | -5/Factory Machinist-Sprinter | -5/Upper Caves Machinist-Sprinter | -5/Upper Caves Machinist-Sprinter | -5/Warlord Machinist-Sprinter | -4/Proximity Caves Hacker-Sprinter | -4/Factory Resources | -11 -10 -10 -9 -9 -9 -8 -8 -8 -8 -7 -7 -7 -7 -7 -6 -6 -6 -6 -6 -6 -6 -5 -5 -5 -5 -5 -5 -5 -4 -4 ----------- Run | Jun Mat Min Mat Min Exi Min Mat Gar Mat Fac Low Low Zio Dee Pro Fac Was Fac Low Low Dat Pro Fac Was Fac Upp Upp War Pro Fac Matter Collected 13130 | 232 340 49 973 69 . 273 1503 363 901 1625 300 194 10 378 189 1491 111 888 263 . . 192 1103 595 382 221 40 234 . 211 Remotely . | . . . . . . . . . . . . . . . . . . . . . . . . . . . . . . . Salvage Created 13290 | . 553 24 1160 125 . 484 1437 371 714 1739 . 102 . 218 127 1132 . 1177 201 40 . 147 1194 1188 346 268 . 173 . 370 Parts 751 | . 45 5 74 21 . 31 83 30 40 111 . 7 . 12 6 73 . 56 6 4 . 15 65 10 24 8 . 7 . 18 Haulers Intercepted 14 | . 2 . 2 . . . 5 . 1 2 . . . . . . . 2 . . . . . . . . . . . . Recyclers Shooed 10 | . . . 1 . . 1 . . . 1 . . . . . . . 1 . . . . 3 . 1 . . . . 2 Parts Field Recycled . | . . . . . . . . . . . . . . . . . . . . . . . . . . . . . . . Retrieved Matter . | . . . . . . . . . . . . . . . . . . . . . . . . . . . . . . . Parts Self-Destructed 46 | . . . . . . . . . . . 6 6 . . 9 . . . 2 2 . 16 . . . . . . 5 . Prevented . | . . . . . . . . . . . . . . . . . . . . . . . . . . . . . . . Kills | -11 -10 -10 -9 -9 -9 -8 -8 -8 -8 -7 -7 -7 -7 -7 -6 -6 -6 -6 -6 -6 -6 -5 -5 -5 -5 -5 -5 -5 -4 -4 ------- Run | Jun Mat Min Mat Min Exi Min Mat Gar Mat Fac Low Low Zio Dee Pro Fac Was Fac Low Low Dat Pro Fac Was Fac Upp Upp War Pro Fac Combat Hostiles Destroyed 258 | . 11 2 29 9 . 20 32 16 9 31 . 7 . 6 4 16 . 14 4 1 . 3 15 6 16 . . 4 . 3 Guns 96 | . 11 1 5 . . . 16 9 9 21 . 1 . 3 1 7 . 5 1 1 . 3 1 . . . . . . 1 Cannons 55 | . . 1 19 2 . 6 11 . . 3 . . . 3 1 5 . 1 . . . . 2 . 1 . . . . . AOE 107 | . . . 5 7 . 14 5 7 . 7 . 6 . . 2 4 . 8 3 . . . 12 6 15 . . 4 . 2 Classes Destroyed 23 | . 7 1 2 . . . 4 . . 5 . . . 2 . . . . . . . . . 2 . . . . . . Worker 29 | . 1 . 1 . . 3 . . 4 6 . . . . . 2 . 2 . . . . 7 . 2 . . . . 1 Builder 15 | . . . . . . . 2 . . 3 . . . . . 4 . . . . . . 1 . 5 . . . . . Tunneler 6 | . . 2 . 1 . . 1 . . . . . . . . 1 . . . . . . 1 . . . . . . . Hauler 14 | . 2 . 2 . . . 5 . 1 2 . . . . . . . 2 . . . . . . . . . . . . Recycler 15 | . 1 . 1 . . . 1 . 1 3 . . . . . 2 . . . . . . 4 . . . . . . 2 Mechanic 2 | . . . . . . . . . . 1 . . . . . . . 1 . . . . . . . . . . . . Operator 7 | . 2 . 2 . . . 1 . . . . . . . . 1 . . . . . . . . . . . . . 1 Watcher 32 | . 2 . 2 . . . 5 . 3 3 . . . . . 6 . 5 . . . . 5 . . . . . . 1 Swarmer 73 | . 6 2 3 7 . 8 4 10 2 2 . 7 . . . 1 . . 4 . . . 9 . 6 . . . . 2 Cutter 2 | . . . . . . . . . . 2 . . . . . . . . . . . . . . . . . . . . Grunt 83 | . 5 . 16 2 . 10 18 4 4 6 . . . . 2 7 . 2 . . . . . . 5 . . 2 . . Brawler 5 | . . . 2 . . 2 . . . . . . . . . . . . . . . . . . 1 . . . . . Duelist 4 | . . . . . . . 1 . . 1 . . . . 1 1 . . . . . . . . . . . . . . Protector 6 | . . . . . . . . . . 2 . . . . . . . 2 . . . . . . . . . 2 . . Sentry 31 | . . . 9 . . . 6 2 3 2 . . . . . 3 . 4 . . . . 2 . . . . . . . Specialist 3 | . . . . . . . . . . 2 . . . . . . . 1 . . . . . . . . . . . . Hunter 13 | . . . . . . . 2 . . 6 . . . . 1 . . 4 . . . . . . . . . . . . Programmer 25 | . . . . . . . . . . 7 . . . . . 4 . 1 . 1 . 3 4 . 4 . . . . 1 Heavy 2 | . . . . . . . 1 . . 1 . . . . . . . . . . . . . . . . . . . . Compactor 6 | . . . . . . . . . . . . . . . . . . . . . . . . 6 . . . . . . Z-Light 3 | . . . . . . . . . . . . . . 3 . . . . . . . . . . . . . . . . Packrat 2 | . . . . . . . . . . . . . . . . . . . 2 . . . . . . . . . . . Assembled 3 | . . . . . . . . . . . . . . 3 . . . . . . . . . . . . . . . . Thug 1 | . . . . . . . . . . . . . . . . . . . . . . . . . . . . 1 . . Butcher 1 | . . . . . . . . . . . . . . 1 . . . . . . . . . . . . . . . . Martyr 2 | . . . . . . . . . . . . . . . . . . . . . . . . 2 . . . . . . Best Kill Streak 11 | . 4 2 5 4 . 7 8 5 3 9 . 4 . 3 4 10 . 11 4 1 . 1 5 3 7 . . 4 . 4 Combat Bots Only 8 | . 3 2 5 4 . 6 5 5 3 5 . 4 . 3 4 5 . 8 4 1 . 1 5 3 5 . . 4 . 2 Max Kills in Single Turn 5 | . 2 1 2 3 . 3 2 3 1 2 . 3 . 1 1 5 . 4 3 1 . 1 5 1 3 . . 5 . 4 Gunslinging 1 | . 1 . . . . . . . . . . . . . . . . . . . . . . . . . . . . . Exploded 5 | . . . 1 3 . 2 2 3 . 2 . 3 . . 1 1 . 4 3 . . . 5 1 3 . . 4 . 2 Melee . | . . . . . . . . . . . . . . . . . . . . . . . . . . . . . . . Uniques/NPCs Destroyed 1 | . . . . . . . . . . . . . . 1 . . . . . . . . . . . . . . . . Z-Imprinter (-7/Deep Caves) Combat | -11 -10 -10 -9 -9 -9 -8 -8 -8 -8 -7 -7 -7 -7 -7 -6 -6 -6 -6 -6 -6 -6 -5 -5 -5 -5 -5 -5 -5 -4 -4 -------- Run | Jun Mat Min Mat Min Exi Min Mat Gar Mat Fac Low Low Zio Dee Pro Fac Was Fac Low Low Dat Pro Fac Was Fac Upp Upp War Pro Fac Damage Taken 17831 | . 309 108 1365 60 . 378 1939 896 807 3176 . 185 . 242 303 1654 . 781 252 160 . 202 1708 74 586 246 . 74 39 2287 Core 3226 | . 56 . 156 6 . 52 201 72 175 262 . . . . 19 276 . 109 31 23 . 57 332 37 133 42 . 34 . 1153 Absorbed by Shields 683 | . . . . . . . 258 27 . 310 . 88 . . . . . . . . . . . . . . . . . . Redirected to Shielding 86 | . . . . . . . . . . 86 . . . . . . . . . . . . . . . . . . . . Regen/Repaired (Parts) 2146 | . . . 107 . . . 120 . 183 67 . . . . . 467 1 263 . . . . 865 7 63 . . 3 . . Core Remaining (%) 54 | 100 . 77 . . . 46 . . 18 . . . . . 59 . . . . . . 41 . . . . . . 42 . Volleys Fired 1030 | . 40 7 94 7 . 33 140 39 53 127 9 4 . 23 10 127 . 90 8 3 . 11 87 31 33 6 . 8 . 40 Largest 2 | . 2 2 2 2 . 2 2 2 2 2 2 2 . 2 2 2 . 2 2 2 . 2 2 1 1 1 . 1 . 2 Hottest 150 | . 46 58 65 69 . 69 67 50 61 120 82 61 . 87 96 147 . 76 98 76 . 76 150 90 90 90 . 90 . 85 Shots Fired 1708 | . 80 14 184 9 . 47 253 74 106 238 15 9 . 46 16 200 . 146 16 6 . 22 108 31 33 6 . 8 . 41 Gun 1141 | . 80 7 79 . . . 138 70 105 214 5 5 . 23 1 146 . 112 14 6 . 22 63 11 . . . . . 40 Cannon 447 | . . 7 94 6 . 33 107 . . 9 10 . . 23 10 50 . 31 . . . . 37 3 15 6 . 6 . . Launcher 120 | . . . 11 3 . 14 8 4 1 15 . 4 . . 5 4 . 3 2 . . . 8 17 18 . . 2 . 1 Special . | . . . . . . . . . . . . . . . . . . . . . . . . . . . . . . . Kinetic 1456 | . 80 14 173 6 . 33 245 70 105 221 15 5 . 46 11 178 . 112 14 6 . 22 63 . . . . . . 37 Thermal 121 | . . . . . . . . . . 2 . . . . . 18 . 31 . . . . 37 3 15 6 . 6 . 3 Explosive 120 | . . . 11 3 . 14 8 4 1 15 . 4 . . 5 4 . 3 2 . . . 8 17 18 . . 2 . 1 Electromagnetic 11 | . . . . . . . . . . . . . . . . . . . . . . . . 11 . . . . . . Robot Hit Streak 21 | . 15 3 14 4 . 12 15 6 21 21 . 1 . 5 4 15 . 11 3 4 . 3 11 16 5 3 . 5 . 12 Robot Miss Streak 9 | . 5 3 9 1 . 4 4 3 6 4 . 2 . 4 6 6 . 3 2 2 . 6 2 1 3 2 . . . 5 Penetration Max 2 | . . . . . . . . . . . . . . 2 . 1 . . 1 . . . 1 . . . . . . 1 Secondary Targets 7 | . 2 . . . . . 1 . . 4 . . . . . . . . . . . . . . . . . . . . Max Gunslinging Chain 1 | . 1 . . . . . 1 . . 1 . . . . . . . . . . . . . . . . . . . . Shots Hit Robots 974 | . 45 6 115 7 . 30 174 25 63 158 . 1 . 20 6 121 . 58 7 2 . 8 62 25 17 4 . 2 . 18 Core Hits 641 | . 19 3 58 10 . 38 77 21 27 110 . 11 . 10 8 64 . 63 7 1 . 6 43 12 28 4 . 8 . 13 Critical Kills 10 | . . . . . . . . . . 3 . . . 1 . . . 1 1 . . . 1 . . . . . . 3 Critical Parts Destroyed 9 | . . . . . . . 1 . . . . . . . . . . 1 1 . . . 2 . . . . . . 4 Critical Strikes 33 | . . . 5 . . . 2 . 1 3 . . . 4 . 4 . 2 2 . . . 3 . . . . . . 7 Destroy 20 | . . . . . . . 1 . 1 3 . . . 1 . . . 2 2 . . . 3 . . . . . . 7 Blast 13 | . . . 5 . . . 1 . . . . . . 3 . 4 . . . . . . . . . . . . . . Melee Attacks 13 | . . . . . . . 2 7 3 1 . . . . . . . . . . . . . . . . . . . . Impact 13 | . . . . . . . 2 7 3 1 . . . . . . . . . . . . . . . . . . . . Slashing . | . . . . . . . . . . . . . . . . . . . . . . . . . . . . . . . Piercing . | . . . . . . . . . . . . . . . . . . . . . . . . . . . . . . . Sneak Attacks 1 | . . . . . . . . . 1 . . . . . . . . . . . . . . . . . . . . . Combat Hostiles . | . . . . . . . . . . . . . . . . . . . . . . . . . . . . . . . Follow-up Attacks . | . . . . . . . . . . . . . . . . . . . . . . . . . . . . . . . Damage Inflicted 39657 | 3 713 145 2745 534 . 1799 4208 939 1340 4874 . 352 . 774 518 3613 . 3106 597 78 . 266 3545 4298 3882 208 . 463 . 657 Guns 12944 | . 698 46 713 . . . 1716 444 1167 2754 . 18 . 362 28 1907 . 1030 206 78 . 266 1065 212 . . . . . 234 Cannons 7005 | . . 74 1293 90 . 509 1560 . . 301 . . . 412 176 761 . 506 . . . . 753 67 295 208 . . . . Explosions 19289 | . . . 717 421 . 1279 904 495 . 1702 . 334 . . 314 945 . 1570 391 . . . 1727 4019 3587 . . 463 . 421 Melee 134 | . . . . . . . . . 134 . . . . . . . . . . . . . . . . . . . . . Ramming 285 | 3 15 25 22 23 . 11 28 . 39 117 . . . . . . . . . . . . . . . . . . . 2 Kinetic 17492 | . 698 120 2006 90 . 509 3276 444 1167 2958 . 18 . 774 204 2367 . 1030 206 78 . 266 1065 . . . . . . 216 Thermal 2354 | . . . . . . . . . . 97 . . . . . 410 . 506 . . . . 753 67 295 208 . . . 18 Explosive 18640 | . . . 717 421 . 1279 904 495 . 1702 . 334 . . 314 836 . 1048 391 . . . 1727 4019 3569 . . 463 . 421 Electromagnetic 752 | . . . . . . . . . . . . . . . . . . 522 . . . . . 212 18 . . . . . Impact 134 | . . . . . . . . . 134 . . . . . . . . . . . . . . . . . . . . . Slashing . | . . . . . . . . . . . . . . . . . . . . . . . . . . . . . . . Piercing . | . . . . . . . . . . . . . . . . . . . . . . . . . . . . . . . Highest Corruption 16 | . . . . . . . . . . 13 13 13 13 . . 5 . 1 1 3 3 7 3 3 9 9 . . . 16 Average Corruption 5 | . . . . . . . . . . 8 13 13 13 . . 2 . 1 1 1 3 4 1 3 9 9 . . . 4 Corruption Purged 5 | . . . . . . . . . . . . . . . . 5 . . . . . . . . . . . . . . Corruption Blocked 10 | . . . . . . . . . . . . . . . . . . . . . . . 10 . . . . . . . Effects 209 | . . . . . . . . . . 62 34 26 2 . . 24 . 7 1 1 1 6 32 3 3 3 . . . 4 Message Errors 42 | . . . . . . . . . . 11 12 4 . . . 1 . 1 . . . . 10 1 1 . . . . 1 Matter Fused 49 | . . . . . . . . . . 15 5 6 . . . 9 . 2 . . 1 2 6 1 1 1 . . . . Heat Flow Errors 23 | . . . . . . . . . . 8 5 5 . . . 1 . 1 . . . . 1 . 1 1 . . . . Energy Discharges 35 | . . . . . . . . . . 8 5 4 . . . 7 . 2 . . . 1 5 1 . 1 . . . 1 Parts Rejected 4 | . . . . . . . . . . 3 . . . . . . . . . . . . 1 . . . . . . . Data Loss (minor) 30 | . . . . . . . . . . 10 3 4 1 . . 3 . 1 . 1 . 2 5 . . . . . . . Data Loss (major) 9 | . . . . . . . . . . 1 . . 1 . . 1 . . 1 . . 1 2 . . . . . . 2 Misfires 9 | . . . . . . . . . . 1 3 3 . . . 1 . . . . . . 1 . . . . . . . Alerts 2 | . . . . . . . . . . 1 1 . . . . . . . . . . . . . . . . . . . Weapon Failures 6 | . . . . . . . . . . 4 . . . . . 1 . . . . . . 1 . . . . . . . Overload Shots . | . . . . . . . . . . . . . . . . . . . . . . . . . . . . . . . Overflow Damage 1456 | . . . 44 26 . 41 27 21 109 77 . . . 15 1 78 . 160 9 . . . 177 41 459 30 . . . 141 Projectiles 221 | . . . 2 . . . 26 . . 42 . . . 15 1 39 . 33 . . . . 14 . 19 30 . . . . Explosions 1117 | . . . 42 26 . 41 1 21 . 26 . . . . . 39 . 127 9 . . . 163 41 440 . . . . 141 Melee 118 | . . . . . . . . . 109 9 . . . . . . . . . . . . . . . . . . . . Knockbacks 42 | . . 1 9 . . 11 12 . 1 . . . . 1 1 6 . . . . . . . . . . . . . . Impact 1 | . . . . . . . . . 1 . . . . . . . . . . . . . . . . . . . . . Kinetic 39 | . . 1 9 . . 10 12 . . . . . . 1 1 5 . . . . . . . . . . . . . . Secondary 2 | . . . . . . 1 . . . . . . . . . 1 . . . . . . . . . . . . . . Self-Inflicted Damage 1723 | . . . 300 17 . 105 . 35 . 103 . 50 . . . 63 . . . . . . 710 75 . . . . . 265 Shots 29 | . . . 7 1 . 4 . 1 . 2 . 1 . . . 1 . . . . . . 8 1 . . . . . 3 Rammed 28 | 2 3 1 3 5 . 1 2 . 3 7 . . . . . . . . . . . . . . . . . . . 1 Targets Rammed 35 | 2 5 3 3 5 . 1 4 . 4 7 . . . . . . . . . . . . . . . . . . . 1 Kicked . | . . . . . . . . . . . . . . . . . . . . . . . . . . . . . . . Crushed 7 | . 2 2 . . . . 2 . 1 . . . . . . . . . . . . . . . . . . . . . Highest Temperature 405 | . 48 93 99 22 . 121 202 209 250 265 246 228 . 122 129 299 15 305 36 8 . 5 370 334 330 405 . 333 . 21 Average Temperature 68 | . 22 37 23 11 . 43 54 56 55 58 79 93 . 56 72 73 2 46 10 6 . 2 68 122 97 150 . 74 . 8 Received Heat Transfer 3412 | . 72 45 384 12 . 117 748 229 432 197 . . . 45 162 480 . 147 12 . . . 99 . 135 . . 27 . 69 Effects 20 | . . . . . . . . . . . . . . . . 2 . . . . . . 1 1 7 5 . 4 . . Shutdowns 3 | . . . . . . . . . . . . . . . . . . . . . . . 1 1 . 1 . . . . Energy Bleed 4 | . . . . . . . . . . . . . . . . . . . . . . . . . . 3 . 1 . . Interference 12 | . . . . . . . . . . . . . . . . 2 . . . . . . . . 6 1 . 3 . . Damage (minor) 1 | . . . . . . . . . . . . . . . . . . . . . . . . . 1 . . . . . Siege Activations . | . . . . . . . . . . . . . . . . . . . . . . . . . . . . . . . Robots Corrupted 3 | . . . . . . . . . . . . . . . . . . 1 . . . . . 2 . . . . . . Combat Hostiles . | . . . . . . . . . . . . . . . . . . . . . . . . . . . . . . . Parts Fried 12 | . . . . . . . . . 1 . . . . . . . . 6 . . . . . 5 . . . . . . Impact Corruptions 4 | . . . . . . . . . 2 2 . . . . . . . . . . . . . . . . . . . . Robots Melted . | . . . . . . . . . . . . . . . . . . . . . . . . . . . . . . . Combat Hostiles . | . . . . . . . . . . . . . . . . . . . . . . . . . . . . . . . Parts Melted 7 | . . . . . . . . . . 2 . . . 2 . . . 2 . . . . 1 . . . . . . . Heat Transferred 2712 | . . . . . . . . . . . . . . . . 350 . 750 . . . . 970 74 296 222 . . . 50 Parts Sabotaged . | . . . . . . . . . . . . . . . . . . . . . . . . . . . . . . . Parts Stolen . | . . . . . . . . . . . . . . . . . . . . . . . . . . . . . . . Parts Stripped . | . . . . . . . . . . . . . . . . . . . . . . . . . . . . . . . Power Chain Reactions 1 | . . . . . . . . . . . . . . . . 1 . . . . . . . . . . . . . . Missiles Intercepted . | . . . . . . . . . . . . . . . . . . . . . . . . . . . . . . . Alert | -11 -10 -10 -9 -9 -9 -8 -8 -8 -8 -7 -7 -7 -7 -7 -6 -6 -6 -6 -6 -6 -6 -5 -5 -5 -5 -5 -5 -5 -4 -4 ------- Run | Jun Mat Min Mat Min Exi Min Mat Gar Mat Fac Low Low Zio Dee Pro Fac Was Fac Low Low Dat Pro Fac Was Fac Upp Upp War Pro Fac Peak Influence 1184 | . 189 112 377 328 . 517 478 840 561 590 . . . . . 576 122 431 . . . . 634 355 1184 . . . . 215 Initial 409 | . . 49 29 94 . . 56 298 409 58 . . . . . . 122 85 . . . . 71 213 248 . . . . 31 Average 265 | . 72 69 178 199 . 319 185 535 288 295 . . . . . 215 122 242 . . . . 296 326 780 . . . . 82 Maximum Alert Level 4 | . . . 1 1 . 2 2 3 2 2 . . . . . 2 . 2 . . . . 2 1 4 . . . . 1 Low Security (%) 44 | 100 100 100 57 55 . 17 51 . 26 44 . . . . . 49 100 33 . . . . 47 . . . . . . 95 Level 1 34 | . . . 42 44 . 42 41 37 56 18 . . . . . 36 . 63 . . . . 17 100 1 . . . . 4 Level 2 17 | . . . . . . 39 6 36 16 37 . . . . . 13 . 3 . . . . 35 . 37 . . . . . Level 3 3 | . . . . . . . . 26 . . . . . . . . . . . . . . . . 50 . . . . . Level 4 . | . . . . . . . . . . . . . . . . . . . . . . . . . 9 . . . . . Level 5 . | . . . . . . . . . . . . . . . . . . . . . . . . . . . . . . . High Security . | . . . . . . . . . . . . . . . . . . . . . . . . . . . . . . . Max Security . | . . . . . . . . . . . . . . . . . . . . . . . . . . . . . . . Squads Dispatched 106 | . 2 . 4 1 . . 5 . 1 15 . . . . . 25 . 15 . . . . 22 . 13 . . . . 3 Investigation 37 | . 1 . 2 . . . 1 . 1 2 . . . . . 9 . 7 . . . . 10 . 3 . . . . 1 Extermination 20 | . . . . . . . . . . 5 . . . . . 5 . 3 . . . . 4 . 2 . . . . 1 Reinforcement 34 | . 1 . 2 1 . . 3 . . 5 . . . . . 5 . 5 . . . . 5 . 6 . . . . 1 Assault 3 | . . . . . . . . . . 1 . . . . . . . . . . . . . . 2 . . . . . Garrison 12 | . . . . . . . 1 . . 2 . . . . . 6 . . . . . . 3 . . . . . . . Intercept . | . . . . . . . . . . . . . . . . . . . . . . . . . . . . . . . Searches Triggered . | . . . . . . . . . . . . . . . . . . . . . . . . . . . . . . . Data Miner Redirects 8 | . . . . . . . . . . . . . . . . . . . . . . . 5 . 3 . . . . . Construction Impeded 9 | . . . . 1 . . . . . 3 . . . . . 1 . . . . . . . . 4 . . . . . Haulers Reinforced 2 | . . . . . . . . . . . . . . . . . . 1 . . . . . . 1 . . . . . Active Scanning Responses . | . . . . . . . . . . . . . . . . . . . . . . . . . . . . . . . Cargo Convoy Interrupts 3 | . . . . . . . . . . 1 . . . . . . . 1 . . . . 1 . . . . . . . Stealth | -11 -10 -10 -9 -9 -9 -8 -8 -8 -8 -7 -7 -7 -7 -7 -6 -6 -6 -6 -6 -6 -6 -5 -5 -5 -5 -5 -5 -5 -4 -4 --------- Run | Jun Mat Min Mat Min Exi Min Mat Gar Mat Fac Low Low Zio Dee Pro Fac Was Fac Low Low Dat Pro Fac Was Fac Upp Upp War Pro Fac Distress Signals 19 | . . . 1 . . 1 5 . 2 1 . . . . . 1 . 2 . . . . 1 . 2 . . . . 3 Communications Jammed 11 | . . . . . . . . . . . . . . . . . . 2 . . . . . . . . . . . 9 Distress Signals 11 | . . . . . . . . . . . . . . . . . . 2 . . . . . . . . . . . 9 Times Spotted 540 | . 23 5 45 9 . 18 46 18 19 65 . 7 . 12 4 63 . 40 9 3 . 5 41 5 38 5 . 20 5 35 Peak Tracking Total 13 | . 4 3 5 4 . 5 5 5 5 9 . 4 . 3 4 7 . 10 9 3 . 3 8 4 7 5 . 10 4 13 Tactical Retreats 70 | . 2 . . . . 1 6 2 1 2 . . . . . 16 . 6 1 . . . 12 . 10 2 . 1 1 7 Traps | -11 -10 -10 -9 -9 -9 -8 -8 -8 -8 -7 -7 -7 -7 -7 -6 -6 -6 -6 -6 -6 -6 -5 -5 -5 -5 -5 -5 -5 -4 -4 ------- Run | Jun Mat Min Mat Min Exi Min Mat Gar Mat Fac Low Low Zio Dee Pro Fac Was Fac Low Low Dat Pro Fac Was Fac Upp Upp War Pro Fac Traps Triggered 31 | . . . 1 . . . 1 6 1 2 . . . . . 9 . 4 . . . . 4 . 1 . . . . 2 Indirectly . | . . . . . . . . . . . . . . . . . . . . . . . . . . . . . . . Trap Hack Attempts . | . . . . . . . . . . . . . . . . . . . . . . . . . . . . . . . Triggered . | . . . . . . . . . . . . . . . . . . . . . . . . . . . . . . . Disarmed 8 | . . . 1 . . . . . . . . . . . . . . . . . . . 7 . . . . . . . Reprogrammed . | . . . . . . . . . . . . . . . . . . . . . . . . . . . . . . . Reused . | . . . . . . . . . . . . . . . . . . . . . . . . . . . . . . . Traps Extracted . | . . . . . . . . . . . . . . . . . . . . . . . . . . . . . . . Installed 4 | . . . . . . . . . . . . . . 2 . . . 2 . . . . . . . . . . . . Triggered 12 | . . . . . . . . . . . . . . . . . . . . . . . 7 . . . . 5 . . Most Traps Carried 4 | . . . . . . . . 4 4 4 4 4 4 4 2 2 2 2 . . . . . . . . . . . . Machines | -11 -10 -10 -9 -9 -9 -8 -8 -8 -8 -7 -7 -7 -7 -7 -6 -6 -6 -6 -6 -6 -6 -5 -5 -5 -5 -5 -5 -5 -4 -4 ---------- Run | Jun Mat Min Mat Min Exi Min Mat Gar Mat Fac Low Low Zio Dee Pro Fac Was Fac Low Low Dat Pro Fac Was Fac Upp Upp War Pro Fac Machines Disabled 70 | . . 1 3 . . 1 8 3 2 1 . . . 2 . 4 . 9 . . . . 11 . 20 . . . . 5 Max in Single Turn 4 | . . . 1 . . 1 2 1 1 1 . . . 1 . 1 . 2 . . . . 4 . 1 . . . . 3 Garrison Access 9 | . . . . . . . . . . 1 . . . . . 3 . 1 . . . . 2 . . . . . . 2 Machines Repaired . | . . . . . . . . . . . . . . . . . . . . . . . . . . . . . . . Machines Sabotaged . | . . . . . . . . . . . . . . . . . . . . . . . . . . . . . . . Overloaded Fab Kills . | . . . . . . . . . . . . . . . . . . . . . . . . . . . . . . . Hacking | -11 -10 -10 -9 -9 -9 -8 -8 -8 -8 -7 -7 -7 -7 -7 -6 -6 -6 -6 -6 -6 -6 -5 -5 -5 -5 -5 -5 -5 -4 -4 --------- Run | Jun Mat Min Mat Min Exi Min Mat Gar Mat Fac Low Low Zio Dee Pro Fac Was Fac Low Low Dat Pro Fac Was Fac Upp Upp War Pro Fac Machines Accessed 174 | . 5 . 12 2 2 . 9 3 6 8 . . . . . 32 . 33 . . 4 . 32 . 12 . . 3 . 11 Terminals 92 | . 4 . 9 1 . . 7 3 4 5 . . . . . 15 . 15 . . . . 15 . 7 . . . . 7 Fabricators 20 | . . . . . . . . . . 1 . . . . . 5 . 5 . . . . 5 . 3 . . . . 1 Repair Stations 20 | . . . 1 . . . 1 . 2 1 . . . . . 4 . 4 . . . . 6 . 1 . . . . . Recycling Units 14 | . 1 . 1 . . . . . . . . . . . . 3 . 5 . . . . 3 . 1 . . . . . Scanalyzers 8 | . . . 1 . . . . . . . . . . . . 2 . 3 . . . . 1 . . . . . . 1 Garrison Access 10 | . . . . . . . 1 . . 1 . . . . . 3 . 1 . . . . 2 . . . . . . 2 Total Hacks 510 | . 12 . 32 2 5 . 22 4 21 18 . . . . . 97 . 98 . . 34 . 98 . 31 . . 6 . 30 Successful 381 | . 6 . 23 2 5 . 15 3 14 11 . . . . . 71 . 77 . . 34 . 72 . 20 . . 6 . 22 Failed 125 | . 5 . 8 . . . 7 1 7 7 . . . . . 25 . 21 . . . . 25 . 11 . . . . 8 Catastrophic 8 | . . . 1 . . . 2 . . 1 . . . . . . . 2 . . . . 1 . 1 . . . . . Database Lockouts 4 | . 1 . 1 . . . . . . . . . . . . 1 . . . . . . 1 . . . . . . . Manual 199 | . 9 . 26 2 1 . 19 . 9 10 . . 5 . . 30 . 29 . . . . 34 . 9 . . 1 . 15 Terminals 252 | . 10 . 25 1 . . 19 4 13 12 . . . . . 49 . 38 . . . . 47 . 16 . . . . 18 Fabricators 54 | . . . . . . . . . . 1 . . . . . 12 . 12 . . . . 16 . 10 . . . . 3 Repair Stations 72 | . . . 2 . . . 2 . 8 4 . . . . . 15 . 16 . . . . 23 . 2 . . . . . Recycling Units 35 | . 2 . 1 . . . . . . . . . . . . 8 . 13 . . . . 8 . 3 . . . . . Scanalyzers 34 | . . . 4 . . . . . . . . . . . . 8 . 15 . . . . 2 . . . . . . 5 Garrison Access 17 | . . . . . . . 1 . . 1 . . . . . 5 . 4 . . . . 2 . . . . . . 4 Terminal Hacks 162 | . 3 . 13 2 5 . 8 3 6 2 . . . . . 25 . 19 . . 34 . 24 . 5 . . 6 . 7 Record 22 | . . . . . 4 . . . . . . . . . . . . . . . 11 . 2 . . . . 5 . . Part Schematic 26 | . . . 1 . . . . . . . . . . . . 5 . 1 . . 13 . 6 . . . . . . . Robot Schematic 7 | . . . . . . . . . . . . . . . . . . . . . 7 . . . . . . . . . Robot Analysis 15 | . 3 . 4 . . . 2 . 1 . . . . . . 2 . 2 . . . . . . 1 . . . . . Prototype ID Bank 3 | . . . . . . . . . . . . . . . . . . . . . 3 . . . . . . . . . Open Door 2 | . . . . 1 . . . . . . . . . . . . . . . . . . . . . . . 1 . . Open DSF 1 | . . . . . . . . . . . . . . . . 1 . . . . . . . . . . . . . . Level Access Points 2 | . . . 1 . . . . . 1 . . . . . . . . . . . . . . . . . . . . . Branch Access Points 4 | . . . 1 . . . . . . . . . . . . 1 . . . . . . 1 . . . . . . 1 Emergency Access Points 2 | . . . . . . . . 1 . . . . . . . 1 . . . . . . . . . . . . . . Machine Index 3 | . . . . . . . . . . . . . . . . 1 . 1 . . . . 1 . . . . . . . Terminal Index 3 | . . . . . . . . . . 1 . . . . . . . . . . . . . . 1 . . . . 1 Fabricator Index 1 | . . . . . . . . . . . . . . . . . . . . . . . . . . . . . . 1 Repair Station Index 3 | . . . . . . . 1 . 1 . . . . . . . . 1 . . . . . . . . . . . . Scanalyzer Index 1 | . . . . . . . . . . . . . . . . . . . . . . . . . . . . . . 1 Garrison Index 1 | . . . . . . . 1 . . . . . . . . . . . . . . . . . . . . . . . Alert Level 9 | . . . 1 . . . 1 . 1 . . . . . . 2 . 2 . . . . 2 . . . . . . . Unreport Threat 20 | . . . 2 . . . 2 . . . . . . . . 7 . 1 . . . . 3 . 3 . . . . 2 Locate Traps 4 | . . . 1 . . . . . . . . . . . . 1 . . . . . . 2 . . . . . . . Disarm Traps 3 | . . . 1 . . . . . . . . . . . . . . . . . . . 2 . . . . . . . Dispatch Records 3 | . . . . . . . . . . . . . . . . 1 . 2 . . . . . . . . . . . . Patrol Status 3 | . . . . . . . . . . . . . . . . 1 . 1 . . . . 1 . . . . . . . Transport Status 1 | . . . . . . . . . 1 . . . . . . . . . . . . . . . . . . . . . Reinforcement Status 1 | . . . . . . . . . . . . . . . . 1 . . . . . . . . . . . . . . Recall Investigation 4 | . . . . . . . . . . 1 . . . . . . . 2 . . . . 1 . . . . . . . Recall Extermination 3 | . . . . . . . . . . . . . . . . . . 1 . . . . 2 . . . . . . . Recall Reinforcements 1 | . . . . . . . . . . . . . . . . . . 1 . . . . . . . . . . . . Hauler Manifests 5 | . . . 1 . . . 1 . 1 . . . . . . 1 . 1 . . . . . . . . . . . . Registered Prototypes 1 | . . . . . . . . . . . . . . . . . . 1 . . . . . . . . . . . . Zone Layout 5 | . . . . 1 . . . . . . . . . . . . . 2 . . . . 1 . . . . . . 1 Garrison Registry 1 | . . . . . . . . 1 . . . . . . . . . . . . . . . . . . . . . . Security Stations 1 | . . . . . . . . 1 . . . . . . . . . . . . . . . . . . . . . . EX-Prototype ID Bank 1 | . . . . . 1 . . . . . . . . . . . . . . . . . . . . . . . . . Fabricator Hacks 44 | . . . . . . . . . . 1 . . . . . 12 . 11 . . . . 10 . 8 . . . . 2 Network Status 5 | . . . . . . . . . . 1 . . . . . 2 . 1 . . . . . . 1 . . . . . Load Schematic 20 | . . . . . . . . . . . . . . . . 5 . 5 . . . . 5 . 4 . . . . 1 Build 19 | . . . . . . . . . . . . . . . . 5 . 5 . . . . 5 . 3 . . . . 1 Repair Station Hacks 61 | . . . 2 . . . 2 . 5 4 . . . . . 13 . 13 . . . . 20 . 2 . . . . . Scan Component 33 | . . . 1 . . . 1 . 3 2 . . . . . 7 . 8 . . . . 10 . 1 . . . . . Repair 28 | . . . 1 . . . 1 . 2 2 . . . . . 6 . 5 . . . . 10 . 1 . . . . . Recycling Unit Hacks 17 | . . . . . . . . . . . . . . . . 7 . 5 . . . . 4 . 1 . . . . . Process 3 | . . . . . . . . . . . . . . . . 2 . . . . . . 1 . . . . . . . Report Inventory 7 | . . . . . . . . . . . . . . . . 2 . 3 . . . . 1 . 1 . . . . . Retrieve Matter 3 | . . . . . . . . . . . . . . . . 2 . . . . . . 1 . . . . . . . Retrieve Components 4 | . . . . . . . . . . . . . . . . 1 . 2 . . . . 1 . . . . . . . Scanalyzer 28 | . . . 4 . . . . . . . . . . . . 3 . 14 . . . . 2 . . . . . . 5 Insert Component 13 | . . . 2 . . . . . . . . . . . . 2 . 5 . . . . 1 . . . . . . 3 Analyze 15 | . . . 2 . . . . . . . . . . . . 1 . 9 . . . . 1 . . . . . . 2 Garrison Access Hacks 10 | . . . . . . . 1 . . 1 . . . . . 3 . 1 . . . . 2 . . . . . . 2 Unlock Access 1 | . . . . . . . 1 . . . . . . . . . . . . . . . . . . . . . . . Seal Access 9 | . . . . . . . . . . 1 . . . . . 3 . 1 . . . . 2 . . . . . . 2 Unauthorized Hacks 59 | . 3 . 4 . . . 4 . 3 3 . . . . . 8 . 14 . . . . 10 . 4 . . . . 6 Terminals 49 | . 2 . 3 . . . 4 . 3 3 . . . . . 7 . 11 . . . . 7 . 3 . . . . 6 Assimilate 15 | . . . 1 . . . . . . 1 . . . . . 6 . 2 . . . . 2 . 2 . . . . 1 Botnet 28 | . 1 . 2 . . . 3 . 2 2 . . . . . 1 . 8 . . . . 4 . 1 . . . . 4 Operators 6 | . 1 . . . . . 1 . 1 . . . . . . . . 1 . . . . 1 . . . . . . 1 Fabricators . | . . . . . . . . . . . . . . . . . . . . . . . . . . . . . . . Repair Stations . | . . . . . . . . . . . . . . . . . . . . . . . . . . . . . . . Recycling Units 10 | . 1 . 1 . . . . . . . . . . . . 1 . 3 . . . . 3 . 1 . . . . . Monitor 3 | . . . . . . . . . . . . . . . . 1 . 1 . . . . . . 1 . . . . . Reject 4 | . . . . . . . . . . . . . . . . . . 2 . . . . 2 . . . . . . . Mask 1 | . . . . . . . . . . . . . . . . . . . . . . . 1 . . . . . . . Tunnel 2 | . 1 . 1 . . . . . . . . . . . . . . . . . . . . . . . . . . . Scanalyzers . | . . . . . . . . . . . . . . . . . . . . . . . . . . . . . . . Garrison Access . | . . . . . . . . . . . . . . . . . . . . . . . . . . . . . . . Data Cores Recovered 3 | . 1 . . . . . . . . . . . . . . . . . . . . . . . 1 . . . . 1 Used . | . . . . . . . . . . . . . . . . . . . . . . . . . . . . . . . Hacking Detections 127 | . 4 . 8 1 . . 6 2 6 6 . . . . . 25 . 25 . . . . 26 . 10 . . . . 8 Full Trace Events 33 | . . . 1 . . . . . 1 2 . . . . . 9 . 7 . . . . 9 . 3 . . . . 1 Feedback Events 4 | . . . . . . . . . . . . . . . . . . 1 . . . . 3 . . . . . . . Corruption 2 | . . . . . . . . . . . . . . . . . . . . . . . 2 . . . . . . . Hackware Fried 2 | . . . . . . . . . . . . . . . . . . 1 . . . . 1 . . . . . . . Feedback Blocked . | . . . . . . . . . . . . . . . . . . . . . . . . . . . . . . . Robot Schematics Acquired 7 | . . . . . . . . . . . . . . . . . . . . . 7 . . . . . . . . . Robots Built . | . . . . . . . . . . . . . . . . . . . . . . . . . . . . . . . Authchips . | . . . . . . . . . . . . . . . . . . . . . . . . . . . . . . . Time . | . . . . . . . . . . . . . . . . . . . . . . . . . . . . . . . Total Robot Build Rating . | . . . . . . . . . . . . . . . . . . . . . . . . . . . . . . . Part Schematics Acquired 35 | . . . 3 . . . . . . . . . . . . 5 . 5 . . 13 . 7 . . . . . . 2 Parts Built 22 | . . . . . . . . . . . . . . . . 6 . 7 . . . . 5 . 3 . . . . 1 Authchips 1 | . . . . . . . . . . . . . . . . . . . . . . . . . 1 . . . . . Time 1603 | . . . . . . . . . . . . . . . . 483 . 444 . . . . 331 . 243 . . . . 102 Total Part Build Rating 131 | . . . . . . . . . . . . . . . . 23 . 46 . . . . 36 . 18 . . . . 8 Parts Repaired 28 | . . . 1 . . . 1 . 2 2 . . . . . 6 . 5 . . . . 10 . 1 . . . . . Time 1703 | . . . 26 . . . 32 . 66 198 . . . . . 373 . 416 . . . . 558 . 34 . . . . . Parts Recycled . | . . . . . . . . . . . . . . . . . . . . . . . . . . . . . . . Recycled Matter 60 | . . . . . . . . . . . . . . . . 53 . . . . . . 7 . . . . . . . Retrieved Matter 60 | . . . . . . . . . . . . . . . . 53 . . . . . . 7 . . . . . . . Retrieved Components 14 | . . . . . . . . . . . . . . . . . . 12 . . . . 2 . . . . . . . Parts Scanalyzed 9 | . . . 2 . . . . . . . . . . . . 1 . 3 . . . . 1 . . . . . . 2 Part Schematics Acquired 9 | . . . 2 . . . . . . . . . . . . . . 4 . . . . 1 . . . . . . 2 Parts Damaged 2 | . . . . . . . . . . . . . . . . . . . . . . . . . . . . . . 2 Bothacking | -11 -10 -10 -9 -9 -9 -8 -8 -8 -8 -7 -7 -7 -7 -7 -6 -6 -6 -6 -6 -6 -6 -5 -5 -5 -5 -5 -5 -5 -4 -4 ------------ Run | Jun Mat Min Mat Min Exi Min Mat Gar Mat Fac Low Low Zio Dee Pro Fac Was Fac Low Low Dat Pro Fac Was Fac Upp Upp War Pro Fac Used RIF Installer . | . . . . . . . . . . . . . . . . . . . . . . . . . . . . . . . Robots Hacked . | . . . . . . . . . . . . . . . . . . . . . . . . . . . . . . . Non-combat . | . . . . . . . . . . . . . . . . . . . . . . . . . . . . . . . Combat . | . . . . . . . . . . . . . . . . . . . . . . . . . . . . . . . Robot Hacks Applied . | . . . . . . . . . . . . . . . . . . . . . . . . . . . . . . . Relay Couplers Released . | . . . . . . . . . . . . . . . . . . . . . . . . . . . . . . . Fabnet Peak Effective % . | . . . . . . . . . . . . . . . . . . . . . . . . . . . . . . . Robots Rewired 7 | . . . . . . . . . . 1 . . . . . . . . . . . . 1 . . . . 5 . . Allies Hacked 3 | . . . . . . . . . . 3 . . . . . . . . . . . . . . . . . . . . Hacks Repelled . | . . . . . . . . . . . . . . . . . . . . . . . . . . . . . . . Allies | -11 -10 -10 -9 -9 -9 -8 -8 -8 -8 -7 -7 -7 -7 -7 -6 -6 -6 -6 -6 -6 -6 -5 -5 -5 -5 -5 -5 -5 -4 -4 -------- Run | Jun Mat Min Mat Min Exi Min Mat Gar Mat Fac Low Low Zio Dee Pro Fac Was Fac Low Low Dat Pro Fac Was Fac Upp Upp War Pro Fac Total Allies 79 | . . 3 1 . . . . . . 5 . . 11 . . 5 20 2 . . . 1 3 19 4 . . 5 . . Largest Group 20 | . . 3 2 1 1 1 . . . 4 . . 11 11 2 2 20 2 . . . 1 1 18 19 . . 5 . . Highest-Rated Group 821 | . . 40 24 10 10 10 . . . 133 . . 273 273 62 36 821 36 . . . 96 49 638 631 . . 269 . . Highest-Rated Ally 96 | . . 16 16 10 10 10 . . . 40 . . 31 31 31 26 50 26 . . . 96 49 50 46 . . 68 . . Total Orders 46 | . . . . 1 . . . . 1 12 1 . . . . 20 . 5 . . . . 3 . 3 . . . . . STAY 16 | . . . . . . . . . . 1 . . . . . 9 . 4 . . . . 2 . . . . . . . FOLLOW 13 | . . . . . . . . . . 1 1 . . . . 9 . 1 . . . . 1 . . . . . . . AID 1 | . . . . . . . . . . 1 . . . . . . . . . . . . . . . . . . . . EXPLORE 8 | . . . . . . . . . . 3 . . . . . 2 . . . . . . . . 3 . . . . . RETURN 8 | . . . . 1 . . . . 1 6 . . . . . . . . . . . . . . . . . . . . Ally Attacks 426 | . . 19 11 . . . . . . 42 . . . 97 10 38 . 4 . . . 16 7 16 143 . . 23 . . Total Damage 11789 | . . 174 71 . . . . . . 639 . . . 1602 149 1966 . 224 . . . 492 293 273 4506 . . 1400 . . Kills 77 | . . 3 1 . . . . . . 6 . . . 15 1 18 . 3 . . . 1 1 . 22 . . 6 . . Allies Corrupted 4 | . . . . . . . . . . 2 . . . . . . . . . . . . . 2 . . . . . . Allies Melted 3 | . . . . . . . . . . . 1 . . . . 1 . . . . . . 1 . . . . . . . Turrets Deployed 3 | . . . . . . . . . . . . . . . . 2 . 1 . . . . . . . . . . . . Intel | -11 -10 -10 -9 -9 -9 -8 -8 -8 -8 -7 -7 -7 -7 -7 -6 -6 -6 -6 -6 -6 -6 -5 -5 -5 -5 -5 -5 -5 -4 -4 ------- Run | Jun Mat Min Mat Min Exi Min Mat Gar Mat Fac Low Low Zio Dee Pro Fac Was Fac Low Low Dat Pro Fac Was Fac Upp Upp War Pro Fac Robot Analysis Total 15 | . 3 . 4 . . . 2 . 1 . . . . . . 2 . 2 . . . . . . 1 . . . . . Derelict Logs Recovered 16 | . . 2 . 1 . . . . . . 1 1 2 . 2 . . . 1 . . 2 . . . 1 . . 3 . Drone Launches 18 | . . . . 1 . . . . 1 8 1 1 . 1 1 1 . . . . . . . . 3 . . . . . Drone Recoveries 10 | . . . . 1 . . . . 1 7 . . . . 1 . . . . . . . . . . . . . . . Exploration | -11 -10 -10 -9 -9 -9 -8 -8 -8 -8 -7 -7 -7 -7 -7 -6 -6 -6 -6 -6 -6 -6 -5 -5 -5 -5 -5 -5 -5 -4 -4 ------------- Run | Jun Mat Min Mat Min Exi Min Mat Gar Mat Fac Low Low Zio Dee Pro Fac Was Fac Low Low Dat Pro Fac Was Fac Upp Upp War Pro Fac Turns Passed 36484 | 105 1549 647 2120 611 951 1393 3353 1488 2441 2959 858 665 1251 1331 618 3898 114 3051 143 129 29 167 3227 357 1214 202 84 626 158 745 Spaces Moved 37175 | 59 767 389 1052 332 402 543 1369 549 882 1280 638 499 949 895 446 6146 302 6653 423 469 98 424 5164 436 2232 464 264 1016 514 1519 Core 2 | 2 . . . . . . . . . . . . . . . . . . . . . . . . . . . . . . Treads 7130 | 57 767 389 1052 332 402 543 1369 549 882 788 . . . . . . . . . . . . . . . . . . . . Legs . | . . . . . . . . . . . . . . . . . . . . . . . . . . . . . . . Wheels 4574 | . . . . . . . . . . 454 638 499 949 895 446 176 . . . . . . 517 . . . . . . . Hover . | . . . . . . . . . . . . . . . . . . . . . . . . . . . . . . . Flight 25469 | . . . . . . . . . . 38 . . . . . 5970 302 6653 423 469 98 424 4647 436 2232 464 264 1016 514 1519 Fastest Speed 11 | 50 160 160 160 160 160 240 160 235 235 115 115 130 130 130 130 12 19 19 11 25 25 24 15 29 29 29 31 25 26 23 Average Speed 72 | 156 177 160 160 174 235 240 198 235 239 183 129 130 130 130 130 28 22 21 24 25 25 24 34 29 40 30 31 30 26 27 Slowest Speed 667 | 160 240 160 160 240 240 240 243 238 240 667 130 130 130 160 130 145 23 98 28 25 25 25 155 29 105 105 31 111 26 168 Overloaded Moves 83 | . . . . . . . . . . . . . . . . 2 . . 6 . . . 16 . . . . 3 . 56 Propulsion Burnouts . | . . . . . . . . . . . . . . . . . . . . . . . . . . . . . . . Robots Hopped 277 | . . . . . . . . . . . . . . . . 76 . 90 . . . . 41 . 23 3 . 7 1 36 Cave-ins Triggered 2 | . . . . . . . . . . 1 . . . . . . . . . . . . . . . . . . . 1 Exploration Rate (%) 70 | 4 95 83 94 84 90 98 89 74 59 29 70 77 80 71 69 84 96 65 53 79 75 58 71 96 40 64 48 84 79 30 Regions Visited 30 Branch Regions 17 Pre-discovered Areas 7 | . 1 . 1 . 1 . . . . . 1 . 1 . . . . . 1 . 1 . . . . . . . . . Known Exits Taken 13 | . . . 1 . . 1 1 . 1 1 1 1 1 . 1 . . 1 . . . 1 . . 1 1 . . . . Unknown Exits Taken 12 | 1 1 1 . 1 1 . . . . . . . . 1 . . . . 1 1 1 . . . . . 1 1 1 . Scrap Searched 28 | . . 1 . 1 . 1 . . . . 6 1 4 . 2 . . . . 5 . 2 . . . 1 2 . 2 . Spaces Dug 187 | . . . . . . 11 3 4 2 4 10 . . . . 16 . 49 3 1 . . 48 . 9 . . 3 . 24 Terrain Destroyed 1418 | . . . 65 21 . 154 53 22 12 167 14 29 . 41 54 80 . 92 47 5 . 21 187 149 121 . . 7 . 77 Melee 7 | . . . . . . . 2 2 2 1 . . . . . . . . . . . . . . . . . . . . Projectile 311 | . . . 2 . . 4 8 2 . 17 14 . . 41 7 24 . 86 8 5 . 21 54 1 5 . . 3 . 9 AOE 1100 | . . . 63 21 . 150 43 18 10 149 . 29 . . 47 56 . 6 39 . . . 133 148 116 . . 4 . 68 Terrain Rammed . | . . . . . . . . . . . . . . . . . . . . . . . . . . . . . . . Walls Destroyed . | . . . . . . . . . . . . . . . . . . . . . . . . . . . . . . . Machines Disabled . | . . . . . . . . . . . . . . . . . . . . . . . . . . . . . . . Actions | -11 -10 -10 -9 -9 -9 -8 -8 -8 -8 -7 -7 -7 -7 -7 -6 -6 -6 -6 -6 -6 -6 -5 -5 -5 -5 -5 -5 -5 -4 -4 --------- Run | Jun Mat Min Mat Min Exi Min Mat Gar Mat Fac Low Low Zio Dee Pro Fac Was Fac Low Low Dat Pro Fac Was Fac Upp Upp War Pro Fac Total 44901 | 68 873 398 1311 354 406 585 1762 683 1134 1713 657 508 966 1018 467 8103 347 8077 444 473 101 463 6468 630 2490 515 264 1322 536 1765 Wait 6076 | . 30 . 118 4 . 8 178 56 156 234 4 2 13 72 2 1748 35 1335 8 1 . 28 1153 154 223 44 . 245 24 201 Move 36605 | 58 766 388 1051 331 401 542 1368 545 882 1278 637 498 948 894 445 5998 301 6481 422 468 97 423 5082 435 2184 457 263 1002 511 1449 Hop 260 | . . . . . . . . . . . . . . . . 72 . 81 . . . . 41 . 23 3 . 6 1 33 Pick Up 136 | 3 13 . 6 2 3 . 17 5 7 14 1 . 1 4 1 22 . 16 . 1 . . 10 3 3 1 . 1 . 2 Fast Attach 141 | 5 3 . 8 1 . . 5 . 2 10 1 . . 8 2 20 3 18 1 . 2 . 28 2 1 . 1 7 . 13 Attach 107 | . . . 6 . . . 10 4 . 9 . . 1 . 1 21 . 11 1 . . 1 22 . 6 1 . 5 . 8 Detach 71 | . 1 . . . . . 2 . . 1 1 . . . . 11 . 9 2 . . . 21 . 5 2 . 7 . 9 Swap 163 | . 7 . 12 1 2 1 18 15 16 22 3 4 2 3 3 19 2 8 2 . . . 11 2 7 . . . . 3 Drop 196 | . 8 . 13 3 . . 18 1 12 8 1 . 1 12 3 42 6 26 . . 2 . 12 3 4 1 . 15 . 5 Fire 1030 | . 40 7 94 7 . 33 140 39 53 127 9 4 . 23 10 127 . 90 8 3 . 11 87 31 33 6 . 8 . 40 Melee 13 | . . . . . . . 2 7 3 1 . . . . . . . . . . . . . . . . . . . . Ram 6 | . . . . . . . . . . 5 . . . . . . . . . . . . . . . . . . . 1 Kick . | . . . . . . . . . . . . . . . . . . . . . . . . . . . . . . . Crush 28 | 2 5 3 3 5 . 1 4 . 3 2 . . . . . . . . . . . . . . . . . . . . Escape Stasis 37 | . . . . . . . . 11 . 1 . . . . . 23 . . . . . . . . 1 . . . . 1 Rewire 28 | . . . . . . . . . . 1 . . . . . . . . . . . . 1 . . . . 26 . . Trap 4 | . . . . . . . . . . . . . . 2 . . . 2 . . . . . . . . . . . . Miscellaneous . | . . . . . . . . . . . . . . . . . . . . . . . . . . . . . . . Route ------- -11/Junkyard -10/Materials (discovered 4 exits: *Mat x3 / [*Min]) -10/Mines -9/Materials (discovered 5 exits: *Mat x3 / *Min x2) -9/Mines (discovered 4 exits: *Mat x2 / *Exi / *Zio) -9/Exiles -8/Mines (discovered 2 exits: *Mat x2) -8/Materials (discovered 3 exits: *Fac x2 / Gar) -8/Garrison (discovered 3 exits: *Mat x3) -8/Materials (discovered 3 exits: *Fac x3) -7/Factory (discovered 3 exits: *Sto / *Low x2) -7/Lower Caves -7/Lower Caves (discovered 2 exits: *Fac / *Zio) -7/Zion (discovered 2 exits: *Dee / Pro) -7/Deep Caves -6/Proximity Caves -6/Factory (discovered 6 exits: *Fac x4 / *Low x2) -6/Waste -6/Factory (discovered 3 exits: *Fac x2 / *Low) -6/Lower Caves -6/Lower Caves (discovered 2 exits: *Fac / *Dat) -6/Data Miner -5/Proximity Caves -5/Factory (discovered 4 exits: *Fac x2 / *Upp x2) -5/Waste -5/Factory (discovered 3 exits: *Fac x2 / *Upp) -5/Upper Caves -5/Upper Caves -5/Warlord -4/Proximity Caves -4/Factory (discovered 6 exits: Res / *Upp x2 / Ext x2 / Arm) History --------- Turn | Location | Event 6 | -11/Junkyard | Discovered new exit (range 16) 106 | -11/Junkyard | Entered Materials 303 | -10/Materials | Build established: Mutant 366 | -10/Materials | Discovered new exit (range 15) 760 | -10/Materials | Discovered new exit (range 4) 1038 | -10/Materials | Central database locked down 1110 | -10/Materials | Discovered new exit (range 6) 1205 | -10/Materials | Discovered new exit (range 11) 1655 | -10/Materials | Entered Mines 1660 | -10/Mines | Assisted by bots powering up and referring to "LRC-V3" 1766 | -10/Mines | Learned Materials emergency access door positions 1768 | -10/Mines | Assembled infested the area 1773 | -10/Mines | Assisted by a Guerilla fighting off Assembled 2212 | -10/Mines | Learned Materials terminal intel 2291 | -10/Mines | Discovered new exit (range 6) 2302 | -10/Mines | Entered Materials 2302 | -9/Materials | Accompanied by 2 allies 2302 | -9/Materials | Evolved 2 slots: Utility x2 2304 | -9/Materials | Loaded intel: 12 terminal locations 2544 | -9/Materials | Discovered new exit (range 16) 2647 | -9/Materials | Build established: Hacker-Mutant 2990 | -9/Materials | Discovered new exit (range 9) 3183 | -9/Materials | Repaired Lgt. Cannon 3383 | -9/Materials | Lost 3 parts (1p1n1u) 3398 | -9/Materials | Discovered new exit (range 9) 3402 | -9/Materials | Identified exit to Materials 3545 | -9/Materials | Discovered new exit (range 15) 3837 | -9/Materials | Identified exit to Mines 3837 | -9/Materials | Central database locked down 4422 | -9/Materials | Entered Mines 4422 | -9/Mines | Accompanied by 1 ally 4475 | -9/Mines | Discovered exit to Materials (range 8) 4544 | -9/Mines | Learned 2 Materials zone layouts 4666 | -9/Mines | Discovered exit to Materials (range 15) 4797 | -9/Mines | A Derelict revealed a hidden shortcut to a safe place 4879 | -9/Mines | Found the Drone Emporium 4886 | -9/Mines | Found Prototype Device 4886 | -9/Mines | Identified Sensor Drone Bay 4955 | -9/Mines | Discovered new exit (range 9) 5020 | -9/Mines | Deemed a non-threat by the Exiles lab entrance 5033 | -9/Mines | Entered Exiles 5033 | -9/Exiles | Accompanied by 1 ally 5093 | -9/Exiles | Met 8R-AWN 5134 | -9/Exiles | Met EX-HEX 5201 | -9/Exiles | Met EX-BIN 5235 | -9/Exiles | Aligned with FarCom system 5237 | -9/Exiles | Given EX-Vault access code 5282 | -9/Exiles | Opened EX-Vault 5297 | -9/Exiles | Found Deploy-a-Sentry 5301 | -9/Exiles | Found Deploy-a-Sentry 5304 | -9/Exiles | Found Deploy-a-Sentry 5358 | -9/Exiles | Warned to stay clear of 0b10 Research branches 5432 | -9/Exiles | Met EX-DEC 5444 | -9/Exiles | Learned location of Zion (-7) 5623 | -9/Exiles | Visited The Gauntlet 5965 | -9/Exiles | Discovered new exit (range 10) 5984 | -9/Exiles | Left Exiles lab with Deploy-a-Sentry 5984 | -9/Exiles | Entered Mines 5984 | -8/Mines | Accompanied by 1 ally 6041 | -8/Mines | Core integrity fell below 50% 6096 | -8/Mines | Discovered exit to Materials (range 9) 6328 | -8/Mines | Discovered exit to Materials (range 10) 7377 | -8/Mines | Entered Materials 7377 | -8/Materials | Evolved 2 slots: Propulsion x1, Utility x1 7512 | -8/Materials | Repaired Hrd. Light Armor Plating 7685 | -8/Materials | Discovered new exit (range 10) 9603 | -8/Materials | Lost 3 parts (1n1u1w) 9864 | -8/Materials | Build established: Scavenger-Mutant 9981 | -8/Materials | Discovered new exit (range 11) 10500 | -8/Materials | Garrison activated, responded to threat 10614 | -8/Materials | Build established: Mutant 10728 | -8/Materials | Identified exit to Garrison 10730 | -8/Materials | Entered Garrison 10818 | -8/Garrison | Triggered checkpoint 10908 | -8/Garrison | Discovered new exit (range 76) 10908 | -8/Garrison | Discovered new exit (range 58) 10908 | -8/Garrison | Discovered new exit (range 29) 10992 | -8/Garrison | Spotted B-75 Beast 11336 | -8/Garrison | Triggered checkpoint 11414 | -8/Garrison | Triggered checkpoint 11643 | -8/Garrison | Attempted to access garrison exit controls, blocked by remote lockdown 11734 | -8/Garrison | Build established: Scavenger-Mutant 11776 | -8/Garrison | Triggered checkpoint 11828 | -8/Garrison | Triggered checkpoint 11981 | -8/Garrison | Learned Materials security intel 11993 | -8/Garrison | Attempted to access garrison exit controls, blocked by remote lockdown 12218 | -8/Garrison | Entered Materials 12367 | -8/Materials | Core integrity fell below 50% 12647 | -8/Materials | Build established: Hacker-Mutant 12766 | -8/Materials | Discovered new exit (range 3) 13712 | -8/Materials | Repaired Med. Treads 13777 | -8/Materials | Core integrity fell below 20% 13815 | -8/Materials | Discovered new exit (range 3) 14032 | -8/Materials | Identified exit to Factory 14176 | -8/Materials | Repaired Med. Treads 14659 | -8/Materials | Entered Factory 14659 | -7/Factory | Evolved 2 slots: Propulsion x1, Utility x1 14996 | -7/Factory | Discovered new exit (range 7) 15013 | -7/Factory | Discovered new exit (range 5) 15020 | -7/Factory | Identified exit to Lower Caves 15034 | -7/Factory | Identified exit to Storage 15084 | -7/Factory | Garrison activated, responded to threat 15593 | -7/Factory | Allied Derelicts emerged from ambush trap array 15609 | -7/Factory | Garrison activated, responded to threat 16011 | -7/Factory | Discovered exit to Lower Caves (range 11) 16149 | -7/Factory | Cargo convoy interrupted 16237 | -7/Factory | Crushed by falling debris 16238 | -7/Factory | System corruption reached 10% 16584 | -7/Factory | Lost 5 parts (4n1u) 17165 | -7/Factory | Lost 3 parts (2n1u) 17366 | -7/Factory | Repaired Diametric Drive 17459 | -7/Factory | First assault squad dispatched 17466 | -7/Factory | Repaired Diametric Drive? 17618 | -7/Factory | Entered Lower Caves 17624 | -7/Lower Caves | Met a Warlord Commander 17625 | -7/Lower Caves | Learned location of Warlord (-5) 17635 | -7/Lower Caves | Found Encrypted Comm Array 17706 | -7/Lower Caves | Identified exit to Lower Caves 18001 | -7/Lower Caves | Spotted B-75 Beast 18196 | -7/Lower Caves | Build established: Mutant 18476 | -7/Lower Caves | Entered another Lower Caves area 18506 | -7/Lower Caves | Discovered new exit (range 9) 18525 | -7/Lower Caves | Identified exit to Factory 18633 | -7/Lower Caves | Encountered a Warlord checkpoint 18665 | -7/Lower Caves | Learned 8 Factory zone layouts 18961 | -7/Lower Caves | Discovered new exit (range 6) 19040 | -7/Lower Caves | Identified exit to Zion 19141 | -7/Lower Caves | Entered Zion 19141 | -7/Zion | Accompanied by 1 ally 19169 | -7/Zion | Identified exit to Deep Caves 19193 | -7/Zion | System corruption cleaned by Quarantine Array 19400 | -7/Zion | Acquired unknown access codes intercepted by a Zionite 19461 | -7/Zion | Gained Derelict followers 19493 | -7/Zion | Gained Derelict followers 19679 | -7/Zion | Gained Derelict followers 19869 | -7/Zion | Learned location of Armory (-4) 20060 | -7/Zion | Identified exit to Proximity Caves 20353 | -7/Zion | Opened final containment barrier to the Deep Caves 20374 | -7/Zion | Saw the warning signs outside the Deep Caves entrance 20392 | -7/Zion | Entered Deep Caves 20392 | -7/Deep Caves | Accompanied by 11 allies 20604 | -7/Deep Caves | Attacked by Z-Imprinter 20617 | -7/Deep Caves | Allies destroyed Z-Imprinter 20647 | -7/Deep Caves | Found Prototype Protection 20647 | -7/Deep Caves | Identified Zio. Weapon Casing 20735 | -7/Deep Caves | Z-Facility disabled 21130 | -7/Deep Caves | Found Prototype Protection 21130 | -7/Deep Caves | Identified Zio. Heavy Carapace 21463 | -7/Deep Caves | Found Zio. Heavy Carapace 21716 | -7/Deep Caves | Discovered new exit (range 7) 21723 | -7/Deep Caves | Entered Proximity Caves 21723 | -6/Proximity Caves | Accompanied by 3 allies 22293 | -6/Proximity Caves | Discovered exit to Factory (range 11) 22320 | -6/Proximity Caves | Learned Factory stockpile data 22341 | -6/Proximity Caves | Entered Factory 22341 | -6/Factory | Accompanied by 1 ally 22341 | -6/Factory | Evolved 2 slots: Propulsion x2 22342 | -6/Factory | Identified exit to Lower Caves 22343 | -6/Factory | Identified exit to Factory 22538 | -6/Factory | Garrison activated, responded to threat 22661 | -6/Factory | Lost 4 parts (1p1n1u1w) 22891 | -6/Factory | DAS Turret deployed 22902 | -6/Factory | Garrison activated, responded to threat 23059 | -6/Factory | Repaired Enh. Autogun 23211 | -6/Factory | Build established: Hacker-Sprinter 23229 | -6/Factory | Fabricated Med. Storage Unit (x1) 23257 | -6/Factory | DAS Turret deployed 23266 | -6/Factory | Fabricated Lgt. Deuterium Engine (x2) 23917 | -6/Factory | Discovered exit to Factory (range 12) 24123 | -6/Factory | Spotted B-75 Beast 24325 | -6/Factory | Repaired Enh. Autogun 24426 | -6/Factory | Repaired Diametric Drive 24488 | -6/Factory | Repaired Enh. Autogun 24510 | -6/Factory | Discovered exit to Factory (range 14) 24599 | -6/Factory | Discovered exit to Factory (range 16) 24685 | -6/Factory | Fabricated Cld. VTOL Module? 24972 | -6/Factory | Repaired Imp. System Restoration Module 25209 | -6/Factory | Fabricated Cld. Nuclear Pulse Thruster? 25839 | -6/Factory | Repaired Diametric Drive 26025 | -6/Factory | Fabricated Cld. Nuclear Pulse Thruster? 26226 | -6/Factory | Central database locked down 26239 | -6/Factory | Manually triggered Chute Trap 26239 | -6/Factory | Sucked down chute 26239 | -6/Factory | Entered Waste 26240 | -6/Waste | Joined by Warlord forces that had cleared the area 26277 | -6/Waste | Discovered new exit (range 16) 26353 | -6/Waste | Entered Factory 26361 | -6/Factory | Discovered exit to Lower Caves (range 14) 26642 | -6/Factory | Fabricated Imp. Recalibrator? 26741 | -6/Factory | Fabricated Imp. Cloaking Device? 26859 | -6/Factory | Discovered exit to Factory (range 9) 26902 | -6/Factory | Mak. Hacking Suite fried by hacking feedback 27008 | -6/Factory | Discovered exit to Factory (range 16) 27025 | -6/Factory | Repaired Adv. Gravity Neutralizer? 27188 | -6/Factory | Fabricated Cld. Nuclear Pulse Thruster? 27295 | -6/Factory | DAS Turret deployed 27301 | -6/Factory | Cargo convoy interrupted 27316 | -6/Factory | Found Prototype Launcher 27319 | -6/Factory | Found Prototype Launcher 27326 | -6/Factory | Destroyed 8 combat bots 27475 | -6/Factory | Identified Hellfire Missile Launcher (x2) 27592 | -6/Factory | Repaired Diametric Drive 27690 | -6/Factory | Fabricated Mic. Fission Core? 28017 | -6/Factory | Repaired Helical Railgun 28205 | -6/Factory | Repaired Helical Railgun 28630 | -6/Factory | Spotted B-75 Beast 28738 | -6/Factory | Fabricated Exp. Reaction Control System? 29177 | -6/Factory | Repaired Remote Force Field 29404 | -6/Factory | Entered Lower Caves 29411 | -6/Lower Caves | Spotted B-75 Beast 29483 | -6/Lower Caves | Attracted the attention of an 0b10 checkpoint 29543 | -6/Lower Caves | Discovered new exit (range 15) 29547 | -6/Lower Caves | Entered another Lower Caves area 29554 | -6/Lower Caves | Discovered exit to Factory (range 6) 29627 | -6/Lower Caves | Encountered a Warlord checkpoint 29656 | -6/Lower Caves | Discovered new exit (range 10) 29666 | -6/Lower Caves | Ambushed by research squad 29675 | -6/Lower Caves | Core integrity fell below 50% 29676 | -6/Lower Caves | Entered Data Miner 29676 | -6/Data Miner | Discovered new exit (range 6) 29682 | -6/Data Miner | Met Data Miner 29690 | -6/Data Miner | Learned location of Section 7 (-2) 29690 | -6/Data Miner | Acquired the access code to Warlord's prototype stash 29694 | -6/Data Miner | Received God Mode back door access code from Data Miner 29705 | -6/Data Miner | Entered Proximity Caves 29803 | -5/Proximity Caves | Escorted by Enhanced Grunt 29860 | -5/Proximity Caves | Learned location of 1 exit from Upper Caves 29864 | -5/Proximity Caves | Learned Factory terminal intel 29865 | -5/Proximity Caves | Discovered exit to Factory (range 13) 29872 | -5/Proximity Caves | Entered Factory 29872 | -5/Factory | Evolved 2 slots: Power x1, Utility x1 29873 | -5/Factory | Loaded intel: 26 terminal locations 30013 | -5/Factory | Discovered new exit (range 10) 30061 | -5/Factory | Repaired Cld. Nuclear Pulse Thruster 30073 | -5/Factory | Garrison activated, responded to threat 30106 | -5/Factory | Repaired Cld. Nuclear Pulse Thruster? 30345 | -5/Factory | Identified exit to Upper Caves 30354 | -5/Factory | Central database locked down 30589 | -5/Factory | Repaired Helical Railgun 30619 | -5/Factory | Incoming investigation squad redirected 30632 | -5/Factory | Fabricated Adv. Hacking Suite (x1) 30698 | -5/Factory | Repaired Helical Railgun? 30721 | -5/Factory | Repaired Imp. Cloaking Device? 30816 | -5/Factory | Lost 4 parts (1p3n) 30937 | -5/Factory | Cargo convoy interrupted 31673 | -5/Factory | Incoming investigation squad redirected 31721 | -5/Factory | Lost 3 parts (1p2n) 31735 | -5/Factory | Fabricated Cld. Nuclear Pulse Thruster? 31765 | -5/Factory | Repaired Mic. Fission Core 31766 | -5/Factory | Adv. System Shield fried by hacking feedback 31820 | -5/Factory | Repaired Helical Railgun? 31980 | -5/Factory | Build established: Hacker-Mutant 32342 | -5/Factory | Incoming investigation squad redirected 32466 | -5/Factory | Fabricated Q-thruster? 32563 | -5/Factory | Incoming investigation squad redirected 32686 | -5/Factory | Repaired Hellfire Missile Launcher 32732 | -5/Factory | Incoming investigation squad redirected 32768 | -5/Factory | Fabricated Impulse Thruster Array (x1) 32790 | -5/Factory | Build established: Hacker-Sprinter 32924 | -5/Factory | Repaired Mic. Fission Core 32962 | -5/Factory | Repaired Imp. Cloaking Device 33048 | -5/Factory | Discovered new exit (range 11) 33099 | -5/Factory | Manually triggered Chute Trap 33099 | -5/Factory | Sucked down chute 33099 | -5/Factory | Entered Waste 33100 | -5/Waste | Met a frightened Derelict 33107 | -5/Waste | Spotted C-40 Crusher 33113 | -5/Waste | Spotted C-40 Crusher 33114 | -5/Waste | Spotted C-40 Crusher 33132 | -5/Waste | Destroyed C-40 Crusher 33138 | -5/Waste | Destroyed C-40 Crusher 33145 | -5/Waste | Destroyed C-40 Crusher 33147 | -5/Waste | Spotted C-40 Crusher 33199 | -5/Waste | Destroyed C-40 Crusher 33201 | -5/Waste | Spotted C-40 Crusher 33229 | -5/Waste | Destroyed C-40 Crusher 33233 | -5/Waste | Destroyed C-40 Crusher 33245 | -5/Waste | Warlord forces began an assault 33297 | -5/Waste | Discovered new exit (range 13) 33456 | -5/Waste | Entered Factory 33456 | -5/Factory | Accompanied by 16 allies 33489 | -5/Factory | Discovered exit to Upper Caves (range 8) 33510 | -5/Factory | Allied Derelicts emerged from ambush trap array 33543 | -5/Factory | Build established: Machinist-Sprinter 33562 | -5/Factory | Fabricated Lgt. Neutrino Core (x1) 33593 | -5/Factory | P-70 Sage assimilated allied TR-HCC(s) 33594 | -5/Factory | P-70 Sage assimilated allied XF-X0Y(s) 33721 | -5/Factory | Repaired Mic. Antimatter Reactor 33756 | -5/Factory | First assault squad dispatched 33772 | -5/Factory | Incoming assault squad redirected 33776 | -5/Factory | Discovered new exit (range 7) 33816 | -5/Factory | Fabricated Adv. System Shield? 33817 | -5/Factory | Incoming assault squad redirected 33970 | -5/Factory | Discovered new exit (range 13) 34068 | -5/Factory | Fabricated Adv. Hacking Suite? 34465 | -5/Factory | Incoming investigation squad redirected 34551 | -5/Factory | Core integrity fell below 50% 34570 | -5/Factory | Build established: Machinist-Mutant 34670 | -5/Factory | Entered Upper Caves 34671 | -5/Upper Caves | Identified exit to Upper Caves 34820 | -5/Upper Caves | Learned 8 Factory zone layouts 34872 | -5/Upper Caves | Entered another Upper Caves area 34893 | -5/Upper Caves | Encountered a Warlord checkpoint 34925 | -5/Upper Caves | Discovered new exit (range 5) 34956 | -5/Upper Caves | Entered Warlord 34966 | -5/Warlord | Discovered new exit (range 14) 34976 | -5/Warlord | System corruption cleaned by Quarantine Array 35083 | -5/Warlord | Received a Watcher feed algorithm from an ecstatic Tinkerer 35133 | -5/Warlord | Found Prototype Special Weapon 35133 | -5/Warlord | Identified RU-N14's Throwing Claymores v3 35141 | -5/Warlord | Warlord's base attacked by MAIN.C 35182 | -5/Warlord | Met Warlord 35187 | -5/Warlord | Opened Warlord's prototype stash 35193 | -5/Warlord | Found Prototype Device 35193 | -5/Warlord | Identified Exp. Cloaking Device 35207 | -5/Warlord | Found Prototype Hackware 35287 | -5/Warlord | Spotted B-75 Beast 35304 | -5/Warlord | Spotted B-86 Titan 35325 | -5/Warlord | Build established: Machinist-Sprinter 35377 | -5/Warlord | Found Prototype Energy Cannon 35377 | -5/Warlord | Identified Vortex Driver 35491 | -5/Warlord | Warlord forces counterattacked 35544 | -5/Warlord | Spotted Executioner 35545 | -5/Warlord | Spotted Executioner 35549 | -5/Warlord | P-80 Master assimilated allied Sentinel 6b 35551 | -5/Warlord | P-80 Master assimilated allied KZ-IBS(g) 35555 | -5/Warlord | Allies destroyed Executioner 35582 | -5/Warlord | Entered Proximity Caves 35589 | -4/Proximity Caves | Learned 4 Research zone layouts 35601 | -4/Proximity Caves | Learned Research non-interactive machine intel 35642 | -4/Proximity Caves | Learned Research garrison access intel 35735 | -4/Proximity Caves | Discovered new exit (range 10) 35740 | -4/Proximity Caves | Entered Factory 35740 | -4/Factory | Evolved 2 slots: Utility x2 35741 | -4/Factory | Identified exit to Research 35883 | -4/Factory | Identified Ghost Barrier 36232 | -4/Factory | Spotted B-86 Titan 36251 | -4/Factory | Discovered new exit (range 6) 36330 | -4/Factory | Build established: Hacker-Sprinter 36400 | -4/Factory | Identified exit to Upper Caves 36400 | -4/Factory | Identified exit to Extension 36400 | -4/Factory | Identified exit to Armory 36417 | -4/Factory | Fabricated Imp. Diametric Drive? 36453 | -4/Factory | Crushed by falling debris 36454 | -4/Factory | System corruption reached 10% 36464 | -4/Factory | Core integrity fell below 50% 36478 | -4/Factory | Core integrity fell below 20% 36485 | -4/Factory | Destroyed by G-67 Veteran with Plasma Rifle Last Messages --------------- 36463_ Knocked back. 36467_ Slug penetrates Subcomponent Replicator. 36471_ P-70 Sage IFF system glitched. 36471_ S-27 Virus destroyed. 36475_ UEAY F5VR1JA&S%ASHN> 15MZCNCGUGRE,I 36476_ Mic. Antimatter Reactor destroyed. 36476_ Critical hit (Blast). 36476_ P-70 Sage resets P-70 Sage, system corruption cleaned. 36478_ The unstable cave ceiling collapses. 36481_ Penetrated by Slug. 36481_ Med. Storage Unit destroyed. 36482_ Extracted 80 energy. 36482_ U-05 Engineer lays Concrete. 36483_ Extracted 10 energy. 36484_ Penetrated by Slug. 36484_ Ghost Barrier destroyed. 36484_ U-05 Engineer lays Concrete. 36484_ Exp. Cloaking Device destroyed. 36485_ U-05 Engineer lays Concrete. [Achievement: Overachiever] Map ----- +----------------------------------------------------+ | ???????????????????????????????????? #???????# | | ???????????????????????????????????? #???????# | | ????????????????????????????????????# ########## | | ????????????????????????????????????# # # | | ????????????????????????????????????# # # | | ????????????????????????????????????# # # | | ????????????????????????????????????# # # | | ????????????????????????????????????# + # | | ????????????????????????????????????# # # | | ????????????????????????????????????# ### # | | ????????????????????????????????????# #?# # | | ????????????????????????????????????# #?# ## | | ????????????????????????????????????# #?# #? | | ????????????????????????????????????#w#?# #? | | ?????????????????????????????######## #?#########? | | ?????????????????????????????# p # #??????????? | | ??????????????????????????#### "" # #??????????? | | ??????????????????????????# ug/ #??????????? | | ??????????????????????????## Hg# #??????????? | | ??????????????????????????## # #??????????? | | ??????????????????????????# !![p # #??????????? | | ########################### #= *### #??????????? | | Y % %%|%###?#b#??????????? | | %% #??# #??????????? | | = #??# #??????????? | | ###+#########+######""###@[ ##??# #??????????? | | #? #?????#[! "" #?### ###????????? | | "" #| """ #?????;% "" ###g! [#????????? | | """ """# """ ######; g"" #????????? | | """ F"# [ """ + g T #????????? | | """ """# ####### g #????????? | | "" # ] """ #?????# ^^ ##### w #????????? | | ] # """ #???#####+#####?###/########???? | | # """ #???# = #??# #???? | | "#########[ #???# #??# """ """ #???? | | "" #????##########???# """ """ #??# """ "T" #???? | | " #?????????????????# """ """ #??# """ " " #???? | | " #?????????????????# """ """ #??# "" #???? | | " #????????????????# #??# "" #???? | | " #????????????????# #??# #???? | | " ##????????????????# """T""" #??# #???? | | ! " #?????????????????###########??######o####???? | | " #????????????????????????????????????????????? | | ! " #????????????????????????????????????????????? | | ""###???????????????????????????????????# #??????? | | ##?????????????????????????????????????# #??????? | | #??????????????????????????????????????# #??????? | | #??????????????????????????????????????# #??????? | | #?????????????????????????????????????########### | | #?????????????????????????????????????# o | +----------------------------------------------------+ Best States ------------- Heat Dissipation 100 Energy Generation 41 Energy Capacity 735 Matter Stores 300 Matter Capacity 300 Sight Range 16 Terrain Scan Range 20 Terrain Scan Density 10 ECM Strength 2 Jamming Range 16 Cloak Strength 4 Power Amplification 30 Additional Mass Support 16 Corruption Containment 12 Armor Coverage 1425 Core Shielding 20 Weapon Shielding 90 Evasion (%) 80 Core Analysis 6 Recoil Reduction 4 Matter Filtering 50 Offensive Hacking 42 Defensive Hacking 14 Authchip Count 1 Trap Extractor Capacity 8 Item Schematics ----------------- Huge Storage Unit | -9/Materials | Hacked Transport Network Coupler | -9/Materials | Scanalyzed Structural Scanner | -9/Materials | Scanalyzed Med. Storage Unit | -6/Factory | Hacked Lgt. Deuterium Engine | -6/Factory | Hacked Cld. VTOL Module | -6/Factory | Hacked Imp. Cloaking Device | -6/Factory | Hacked Cld. Nuclear Pulse Thruster | -6/Factory | Hacked Adv. System Shield | -6/Factory | Scanalyzed Hellfire Missile Launcher | -6/Factory | Scanalyzed Helical Railgun | -6/Factory | Scanalyzed Mic. Fission Core | -6/Factory | Hacked Exp. Reaction Control System | -6/Factory | Scanalyzed Combat Drone Bay | -6/Data Miner | Free Lgt. Regenerative Plating | -6/Data Miner | Free Cld. Gravmag System | -6/Data Miner | Free Prc. Matter Filter | -6/Data Miner | Free Tri-rail Accelerator | -6/Data Miner | Free Centrium Wheel | -6/Data Miner | Free Quantum Capacitor | -6/Data Miner | Free Matter Neutralizer | -6/Data Miner | Free Hyp. Gauss Cannon | -6/Data Miner | Free Adv. Trap Scanner | -6/Data Miner | Free Adv. Medium Treads | -6/Data Miner | Free Adv. Recalibrator | -6/Data Miner | Free Adv. Heavy Treads | -6/Data Miner | Free Adv. Force Field | -5/Factory | Hacked Adv. Hacking Suite | -5/Factory | Hacked Adv. Micro-nuke Launcher | -5/Factory | Hacked Exp. Energy Well | -5/Factory | Scanalyzed Lgt. Neutrino Core | -5/Factory | Hacked Q-thruster | -5/Factory | Hacked Impulse Thruster Array | -5/Factory | Hacked Imp. Diametric Drive | -4/Factory | Scanalyzed Transmission Jammer | -4/Factory | Scanalyzed Robot Schematics ------------------ D-63 Destroyer | -6/Data Miner | Free B-60 Warrior | -6/Data Miner | Free B-48 Gladiator | -6/Data Miner | Free R-10 Processor | -6/Data Miner | Free L-61 Swordsman | -6/Data Miner | Free H-66 Slayer | -6/Data Miner | Free A-15 Conveyor | -6/Data Miner | Free Fabricated ------------ Med. Storage Unit | x1 | -6/Factory Lgt. Deuterium Engine | x2 | -6/Factory Cld. VTOL Module | x1 | -6/Factory Cld. Nuclear Pulse Thruster | x1 | -6/Factory Cld. Nuclear Pulse Thruster | x1 | -6/Factory Imp. Recalibrator | x2 | -6/Factory | Preloaded Imp. Cloaking Device | x1 | -6/Factory Cld. Nuclear Pulse Thruster | x1 | -6/Factory Mic. Fission Core | x2 | -6/Factory Exp. Reaction Control System | x1 | -6/Factory Adv. Hacking Suite | x1 | -5/Factory Cld. Nuclear Pulse Thruster | x1 | -5/Factory Q-thruster | x2 | -5/Factory Impulse Thruster Array | x1 | -5/Factory Lgt. Neutrino Core | x1 | -5/Factory | Authchip Adv. System Shield | x1 | -5/Factory Adv. Hacking Suite | x1 | -5/Factory Imp. Diametric Drive | x1 | -4/Factory Alien Tech Used ----------------- None Achievements -------------- Hard Hitter Overachiever Wheee! Challenges ------------ None Game ------ Seed DisposableXenonCanceller Manual? 0 Play Time 06:54:11 Cumulative 117.4 hours Start 2024.01.15 @ 19:55:20 End 2024.01.17 @ 10:04:51 Sessions 29 Manual Loads 0 Difficulty Rogue Special Mode None Game No. 120 Rogue 120 Adventurer 0 Explorer 0 Win Type - Total 1 Types 1/0/0/0/0/0/0/0/0 Lore% 52 Gallery% 60 Achievement% 50 Wizard Run 0 Options --------- ASCII 0 Keyboard 1 Movement Numpad Keybinds 0 Fullscreen 2 Font 18/SmallcapsGlow Map View 76x50 Tactical HUD 1 Map Filters NONE Filters NONE Steam 1 RUN: f43f8556-d6c2-49c1-875f-89b9bcc24e56